Cogmind - Beta 13 @@@ ROGUE MODE // 2024.03.31 @ 18:42:46 Player: f_ Result: Self-destructed Performance ------------- Evolutions (1) 500 Regions Visited (3) 600 Robots Destroyed (26) 130 Value Destroyed (668) 668 Prototype IDs (2) 40 Alien Tech Used (0) 0 Bonus (0) 0 TOTAL SCORE: 1938 Bonus ------- None Cogmind --------- Core Integrity 354/400 Matter 222/300 Energy 100/100 System Corruption 0% Temperature Cool (15) Movement Walking (190) Ox1 Location -9/Materials Parts ------- > --- POWER (1) -------- (None) > --- PROPULSION (2) --- Improved Aluminum Leg Hover Unit > --- UTILITY (4) ------ Large Storage Unit > --- WEAPON (2) ------- (None) > --- INVENTORY (15) --- Ion Engine Sensor Array Medium Laser Beamcaster Autogun Autogun Grenade Launcher Rocket Launcher Datajack Datajack Peak State ------------ > --- POWER ------------ Light Angular Momentum Engine > --- PROPULSION ------- Improved Aluminum Leg Improved Aluminum Leg > --- UTILITY ---------- Large Storage Unit > --- WEAPON ----------- Beamcaster > --- INVENTORY -------- Ion Engine Sensor Array Medium Laser Autogun Autogun Grenade Launcher Rocket Launcher Datajack Datajack [Rating: 16] Favorites ----------- Power Ion Engine Engine Ion Engine Propulsion Improved Aluminum Leg Leg Improved Aluminum Leg Wheel Wheel Hover Unit Hover Unit Utility Large Storage Unit Storage Large Storage Unit Weapon Autogun Energy Gun Beamcaster Ballistic Gun Autogun Ballistic Cannon Bore Cannon Build | -11 -10 -10 -9 ------- Run | Yrd Mat Min Mat Slots Evolved 2 | . . . 2 Power . | . . . . Propulsion . | . . . . Utility 2 | . . . 2 Weapon . | . . . . Parts Attached 17 | 4 8 4 1 Power 2 | 1 . 1 . Engine 2 | 1 . 1 . Core . | . . . . Reactor . | . . . . Propulsion 7 | 2 4 . 1 Treads . | . . . . Leg 4 | . 4 . . Wheel 2 | 2 . . . Hover 1 | . . . 1 Flight . | . . . . Utility 3 | 1 2 . . Device . | . . . . Storage 3 | 1 2 . . Processor . | . . . . Hackware . | . . . . Protection . | . . . . Artifact . | . . . . Weapon 5 | . 2 3 . Energy Gun 1 | . . 1 . Energy Cannon . | . . . . Ballistic Gun 3 | . 2 1 . Ballistic Cannon 1 | . . 1 . Launcher . | . . . . Special Weapon . | . . . . Impact Weapon . | . . . . Slashing Weapon . | . . . . Piercing Weapon . | . . . . Special Melee Weapon . | . . . . Unidentified Prototypes . | . . . . Parts Lost 5 | . 2 . 3 Power 1 | . . . 1 Propulsion 3 | . 2 . 1 Utility . | . . . . Weapon 1 | . . . 1 Highest Loss Streak 2 | . 2 . 1 To Critical Strikes . | . . . . Average Slot Usage (%) 64 | . 67 69 47 Engine 12 | . 14 14 4 Leg 18 | . 8 28 20 Wheel 7 | . 17 . . Storage 13 | . 14 14 11 Energy Gun 2 | . . 7 . Ballistic Gun 5 | . 11 . . Ballistic Cannon 4 | . . 5 11 Naked Turns . | . . . . Heaviest Build 38 | 10 33 38 38 Greatest Support 26 | 26 26 26 26 Greatest Overweight (x) 9 | . 9 1 2 Average Overweight (x) . | . . . 1 Largest Inventory Capacity 15 | 8 15 15 15 Average Capacity 14 | 6 13 15 15 Most Carried 11 | 4 9 10 11 Average Carried 7 | 2 6 9 10 Final Capacity 15 | 8 15 15 15 Final Carried 10 | 3 7 10 10 Class Distribution -------------------- 100% | Mutant Dominant Class ---------------- Mutant | -10/Materials Mutant | -10/Mines Mutant | -9/Materials Resources | -11 -10 -10 -9 ----------- Run | Yrd Mat Min Mat Matter Collected 808 | 57 420 134 197 Remotely . | . . . . Salvage Created 859 | . 320 97 442 Parts 47 | . 18 . 29 Haulers Intercepted 2 | . 1 . 1 Recyclers Shooed 3 | . . . 3 Parts Field Recycled . | . . . . Retrieved Matter . | . . . . Parts Self-Destructed . | . . . . Prevented . | . . . . Kills | -11 -10 -10 -9 ------- Run | Yrd Mat Min Mat Combat Hostiles Destroyed 19 | . 9 2 8 Guns 10 | . 9 1 . Cannons 9 | . . 1 8 Classes Destroyed 9 | . 5 1 3 Builder 1 | . . . 1 Hauler 2 | . 1 . 1 Recycler 1 | . . . 1 Operator 1 | . 1 . . Watcher 2 | . 1 . 1 Swarmer 6 | . 6 . . Grunt 8 | . 3 1 4 Duelist 1 | . . . 1 Sentry 4 | . . 1 3 Best Kill Streak 6 | . 4 1 6 Combat Bots Only 5 | . 4 1 5 Max Kills in Single Turn 1 | . 1 1 1 Gunslinging . | . . . . Exploded . | . . . . Melee . | . . . . Uniques/NPCs Destroyed . | . . . . Combat | -11 -10 -10 -9 -------- Run | Yrd Mat Min Mat Hostile Shots Fired 103 | . 34 16 53 Missed 34 | . 8 5 21 Damage Taken 858 | . 288 148 422 Core 188 | . 88 54 46 Absorbed by Shields . | . . . . Core Remaining (%) 71 | 100 . 43 . Volleys Fired 100 | . 44 16 40 Largest 1 | . 1 1 1 Hottest 57 | . 23 57 57 Shots Fired 100 | . 44 16 40 Gun 53 | . 44 9 . Cannon 47 | . . 7 40 Launcher . | . . . . Special . | . . . . Kinetic 100 | . 44 16 40 Thermal . | . . . . Explosive . | . . . . Electromagnetic . | . . . . Robot Hit Streak 7 | . 6 5 7 Robot Miss Streak 4 | . 3 2 4 Penetration Max 1 | . . . 1 Secondary Targets . | . . . . Shots Hit Robots 60 | . 29 11 20 Core Hits 33 | . 17 3 13 Critical Kills 8 | . . 1 7 Critical Parts Destroyed 10 | . . 2 8 Critical Strikes 19 | . . 3 16 Destroy 19 | . . 3 16 Melee Attacks . | . . . . Impact . | . . . . Slashing . | . . . . Piercing . | . . . . Sneak Attacks . | . . . . Combat Hostiles . | . . . . Follow-up Attacks . | . . . . Damage Inflicted 1241 | . 416 181 644 Guns 504 | . 416 88 . Cannons 737 | . . 93 644 Explosions . | . . . . Melee . | . . . . Ramming . | . . . . Kinetic 1241 | . 416 181 644 Thermal . | . . . . Explosive . | . . . . Electromagnetic . | . . . . Impact . | . . . . Slashing . | . . . . Piercing . | . . . . Highest Corruption . | . . . . Average Corruption . | . . . . Corruption Purged . | . . . . Corruption Blocked . | . . . . Overload Shots . | . . . . Overflow Damage 1 | . . . 1 Projectiles 1 | . . . 1 Explosions . | . . . . Melee . | . . . . Knockbacks 6 | . . . 6 Impact . | . . . . Kinetic 5 | . . . 5 Secondary 1 | . . . 1 Self-Inflicted Damage . | . . . . Shots . | . . . . Rammed . | . . . . Targets Rammed . | . . . . Kicked . | . . . . Crushed . | . . . . Highest Temperature 158 | . 15 158 139 Average Temperature 36 | . 5 62 44 Received Heat Transfer 351 | . 108 75 168 Siege Activations . | . . . . Robots Corrupted . | . . . . Combat Hostiles . | . . . . Parts Fried . | . . . . Impact Corruptions . | . . . . Robots Melted . | . . . . Combat Hostiles . | . . . . Parts Melted 1 | . . 1 . Heat Transferred . | . . . . Parts Sabotaged . | . . . . Parts Stolen . | . . . . Parts Stripped . | . . . . Power Chain Reactions . | . . . . Alert | -11 -10 -10 -9 ------- Run | Yrd Mat Min Mat Peak Influence 326 | . 236 45 326 Initial 15 | . . 15 8 Average 65 | . 64 25 150 Maximum Alert Level 1 | . 1 . 1 Low Security (%) 92 | 100 94 100 71 Level 1 7 | . 5 . 28 Level 2 . | . . . . Level 3 . | . . . . Level 4 . | . . . . Level 5 . | . . . . High Security . | . . . . Max Security . | . . . . Squads Dispatched 8 | . 5 . 3 Investigation 5 | . 3 . 2 Extermination . | . . . . Reinforcement 3 | . 2 . 1 Assault . | . . . . Garrison . | . . . . Intercept . | . . . . Searches Triggered . | . . . . Construction Impeded . | . . . . Haulers Reinforced . | . . . . Active Scanning Responses . | . . . . Cargo Convoy Interrupts . | . . . . Stealth | -11 -10 -10 -9 --------- Run | Yrd Mat Min Mat Distress Signals 3 | . 2 . 1 Communications Jammed . | . . . . Distress Signals . | . . . . Times Spotted 37 | . 16 3 18 Peak Tracking Total 7 | . 7 2 7 Tactical Retreats 1 | . 1 . . Traps | -11 -10 -10 -9 ------- Run | Yrd Mat Min Mat Traps Triggered . | . . . . Indirectly . | . . . . Trap Hack Attempts . | . . . . Triggered . | . . . . Disarmed . | . . . . Reprogrammed . | . . . . Reused . | . . . . Traps Extracted . | . . . . Installed . | . . . . Triggered . | . . . . Machines | -11 -10 -10 -9 ---------- Run | Yrd Mat Min Mat Machines Disabled 2 | . . . 2 Max in Single Turn 1 | . . . 1 Machines Repaired . | . . . . Machines Dismantled . | . . . . Machines Sabotaged . | . . . . Overloaded Fab Kills . | . . . . Hacking | -11 -10 -10 -9 --------- Run | Yrd Mat Min Mat Machines Accessed 9 | . 6 . 3 Terminals 9 | . 6 . 3 Fabricators . | . . . . Repair Stations . | . . . . Recycling Units . | . . . . Scanalyzers . | . . . . Garrison Access . | . . . . Total Hacks 33 | . 24 . 9 Successful 15 | . 12 . 3 Failed 18 | . 12 . 6 Catastrophic 5 | . 4 . 1 Database Lockouts . | . . . . Manual 29 | . 20 . 9 Terminals 33 | . 24 . 9 Fabricators . | . . . . Repair Stations . | . . . . Recycling Units . | . . . . Scanalyzers . | . . . . Garrison Access . | . . . . Terminal Hacks 13 | . 11 . 2 Prototype ID Bank 1 | . 1 . . Branch Access Points 1 | . 1 . . Terminal Index 1 | . 1 . . Alert Level 5 | . 4 . 1 Unreport Threat 1 | . 1 . . Recall Investigation 2 | . 1 . 1 Recall Reinforcements 1 | . 1 . . Registered Components 1 | . 1 . . Fabricator Hacks . | . . . . Repair Station Hacks . | . . . . Recycling Unit Hacks . | . . . . Scanalyzer . | . . . . Garrison Access Hacks . | . . . . Unauthorized Hacks 2 | . 1 . 1 Terminals 2 | . 1 . 1 Botnet 2 | . 1 . 1 Fabricators . | . . . . Repair Stations . | . . . . Recycling Units . | . . . . Scanalyzers . | . . . . Garrison Access . | . . . . Data Cores Recovered . | . . . . Used . | . . . . Hacking Detections 9 | . 6 . 3 Full Trace Events 7 | . 4 . 3 Feedback Events . | . . . . Feedback Blocked . | . . . . Robot Schematics Acquired . | . . . . Robots Built . | . . . . Authchips . | . . . . Time . | . . . . Total Robot Build Rating . | . . . . Part Schematics Acquired . | . . . . Parts Built . | . . . . Authchips . | . . . . Time . | . . . . Total Part Build Rating . | . . . . Parts Repaired . | . . . . Time . | . . . . Parts Recycled . | . . . . Recycled Matter . | . . . . Retrieved Matter . | . . . . Retrieved Components . | . . . . Parts Scanalyzed . | . . . . Part Schematics Acquired . | . . . . Parts Damaged . | . . . . Bothacking | -11 -10 -10 -9 ------------ Run | Yrd Mat Min Mat Used RIF Installer . | . . . . Robots Hacked . | . . . . Non-combat . | . . . . Combat . | . . . . Robot Hacks Applied . | . . . . Relay Couplers Released . | . . . . Fabnet Peak Effective % . | . . . . Robots Rewired . | . . . . Allies Hacked . | . . . . Hacks Repelled . | . . . . Allies | -11 -10 -10 -9 -------- Run | Yrd Mat Min Mat Total Allies . | . . . . Largest Group . | . . . . Highest-Rated Group . | . . . . Highest-Rated Ally . | . . . . Total Orders . | . . . . Ally Attacks . | . . . . Total Damage . | . . . . Kills . | . . . . Allies Corrupted . | . . . . Allies Melted . | . . . . Intel | -11 -10 -10 -9 ------- Run | Yrd Mat Min Mat Robot Analysis Total . | . . . . Derelict Logs Recovered 3 | . . 3 . Drone Launches . | . . . . Drone Recoveries . | . . . . Exploration | -11 -10 -10 -9 ------------- Run | Yrd Mat Min Mat Turns Passed 1796 | 35 742 663 356 Spaces Moved 1010 | 31 513 341 125 Core 10 | 8 2 . . Treads . | . . . . Legs 611 | . 145 341 125 Wheels 389 | 23 366 . . Hover . | . . . . Flight . | . . . . Fastest Speed 50 | 50 90 120 190 Average Speed 148 | 79 117 181 201 Slowest Speed 500 | 90 500 190 260 Overloaded Moves . | . . . . Propulsion Burnouts . | . . . . Robots Hopped . | . . . . Cave-ins Triggered . | . . . . Exploration Rate (%) 41 | 4 74 66 22 Regions Visited 3 Branch Regions 1 Pre-discovered Areas . | . . . . Known Exits Taken 1 | . 1 . . Unknown Exits Taken 2 | 1 . 1 . Scrap Searched 1 | . . 1 . Spaces Dug . | . . . . Terrain Destroyed 30 | . . 5 25 Melee . | . . . . Projectile 30 | . . 5 25 AOE . | . . . . Terrain Rammed . | . . . . Walls Destroyed . | . . . . Machines Disabled . | . . . . Actions | -11 -10 -10 -9 --------- Run | Yrd Mat Min Mat Total 1222 | 41 621 372 188 Wait 65 | . 37 7 21 Move 1007 | 30 512 340 125 Hop . | . . . . Pick Up 24 | 7 13 3 1 Fast Attach . | . . . . Attach 13 | 4 6 2 1 Detach 3 | . 1 2 . Swap 4 | . 2 2 . Drop 6 | . 6 . . Fire 100 | . 44 16 40 Melee . | . . . . Ram . | . . . . Kick . | . . . . Crush . | . . . . Escape Stasis . | . . . . Rewire . | . . . . Trap . | . . . . Miscellaneous . | . . . . Route ------- -11/Scrapyard -10/Materials (discovered 3 exits: *Min x2 / *Sub) -10/Mines (discovered 2 exits: *Mat / Sub) -9/Materials (discovered 2 exits: Mat / [*Min]) History --------- Turn | Location | Event 23 | -11/Scrapyard | Discovered new exit (range 15) 36 | -11/Scrapyard | Entered Materials 204 | -10/Materials | Discovered new exit (range 16) 206 | -10/Materials | Identified exit to Mines 303 | -10/Materials | Build established: Mutant 399 | -10/Materials | Discovered new exit (range 5) 778 | -10/Materials | Entered Mines 791 | -10/Mines | Met a Derelict bent on vengeance 821 | -10/Mines | Learned 4 Materials zone layouts 1085 | -10/Mines | Identified exit to Subcaves 1199 | -10/Mines | A weapon hastily lodged in a ceiling crevice suddenly fell to the ground 1375 | -10/Mines | Joined a pair of Derelicts in attacking an 0b10 outpost 1394 | -10/Mines | Core integrity fell below 50% 1430 | -10/Mines | Discovered new exit (range 6) 1441 | -10/Mines | Entered Materials 1441 | -9/Materials | Evolved 2 slots: Utility x2 1442 | -9/Materials | Identified exit to Materials 1653 | -9/Materials | Discovered new exit (range 9) 1797 | -9/Materials | Self-destructed Last Messages --------------- 01718_ L-31 Rogue suffers critical hit (Destroy). 01718_ Destroyed Imp. Aluminum Leg. 01718_ HV Slug penetrates Earth. 01720_ HV Slug penetrates L-31 Rogue. 01720_ L-31 Rogue destroyed. 01728_ HV Slug penetrates Wall. 01730_ Imp. Aluminum Leg destroyed. 01732_ G-34 Mercenary suffers critical hit (Destroy). 01732_ G-34 Mercenary destroyed. 01738_ Acquired 41 matter. 01743_ Acquired Hover Unit. 01747_ ALERT: Hostiles spotted, dispatching reinforcements to Terminal M007. 01759_ K-01 Serf collects debris. 01795_ HV Slug penetrates Wall. 01795_ HV Slug penetrates G-34 Mercenary. 01795_ G-34 Mercenary destroyed. 01795_ Bore Cannon destroyed. Map ----- +----------------------------------------------------+ | ## #?????# #??????????????????????????? | | ## % #?????## #??????????????????????????? | | ## ##????##### +??????????????????????????? | | # ########## #??????????????????????????? | | # #??????????????????????????? | | # %[ #??????????????????????????? | | #### ![% ! #??????????????????????????? | | ???# # #??????????????????????????? | | ???####### #??????????????????????????? | | ?????????# #### ##?????????????????????????? | | ?????????# #" #?????????????????????????? | | ?????????# #"" #?????????????????????????? | | ?????????# #!! #?????????????????????????? | | ?????????# #"" < #?????????????????????????? | | ?????????# #!! #?????????????????????????? | | ?????????# #"" #?????????????????????????? | | ?????????# #" #?????????????????????????? | | ????????## #### ##?????????????????????????? | | ????????# #??????????????????????????? | | ????????# #??????????????????????????? | | ????????# #??????????????????????????? | | ????????# !! """ ############???????????????? | | ????????# !! """ ### #???????????????? | | ????????## ! """ #?# ????????????????? | | ?????????# ### """ [????????????????? | | ??????? # # @""""" ?????????????????? | | ??????? + % % g """"" ?????????????????? | | ?????????# %! % g; """""??????????????????? | | ?????????## ! k! g# """ ??????????????????? | | ??????????# *% ! =# ??????????????????? | | ??????????# % ########??????????????????? | | ??????????# #?????????????????????????? | | ???? # #?????????????????????????? | | ???# " #######???????????????????? | | ???# " ????????????? | | ???# "== ????????????? | | ???# "%*|% ????????????? | | ???# #%! #"## ^ #######+?????????????? | | ???# !% %# ## #????????????????????? | | # #= # ?#^!^! "#??????????????? # | | ##+#"### %##?# !! #???????????????##### | | # " " [ #??# !! ""#?????????????? | | + #??# ###?????????????? | | # #### ???????????????? | | # ## ######"## ###??????????????? | | # """"" # ??? ? #????????????????? | | # """"" # ??? ??#????????????????? | | #### """"" + ??? #???????????????????####/ | | ???# # ???? ???????????????????? | | #### # ????????????????????????? | +----------------------------------------------------+ Best States ------------- Heat Dissipation 28 Energy Generation 18 Energy Capacity 250 Matter Stores 300 Matter Capacity 300 Sight Range 16 Terrain Scan Density 10 Evasion (%) 55 Item Schematics ----------------- None Robot Schematics ------------------ None Fabricated ------------ Nothing Alien Tech Used ----------------- None Achievements -------------- None Challenges ------------ None Game ------ Seed CombatRainbowRecalibrator Manual? 0 Play Time 00:17:25 Cumulative 107.9 hours Start 2024.03.31 @ 18:14:44 End 2024.03.31 @ 18:42:46 Sessions 3 Manual Loads 0 Difficulty Rogue Special Mode None Game No. 109 Rogue 106 Adventurer 0 Explorer 3 Win Type - Total 0 Types 0/0/0/0/0/0/0/0/0 Lore% 31 Gallery% 47 Achievement% 34 Wizard Run 0 Options --------- Layout 1 ASCII 0 Keyboard 0 Movement Mouse Keybinds 0 Fullscreen 2 Font 48/Terminus Map View 50x35 Zoom Use 0% Tactical HUD 1 Map Filters NONE Filters NONE Steam 1 RUN: d7b9e345-b59f-4cc1-85d5-f8fee5b30361